bitfinex-derivatives/quotes_SOLF0:USTF0_20250428
["timestamp","ask_amount","ask_price","bid_price","bid_amount"]
[1745877053356,23.94,147.1,147.07,6.7977]
[1745877053854,30.7364,147.1,147.06,6.798]
[1745877054158,45.37516644,147.1,147.06,6.798]
[1745877055158,30.7364,147.1,147.06,6.798]
[1745877055362,23.94,147.1,147.07,6.7977]
[1745877058159,23.94,147.1,147.08,6.7972]
[1745877058560,6.7956,147.12,147.08,6.7972]
[1745877059859,6.7953,147.13,147.09,6.7968]
[1745877060062,6.7953,147.13,147.05,14.63876644]
[1745877060363,6.7953,147.13,147.09,6.7965]
[1745877060563,6.7953,147.13,147.05,14.63876644]
[1745877060858,6.7946,147.14,147.05,14.63876644]
[1745877062164,6.7946,147.14,147.11,6.7956]
[1745877062361,46.37296644,147.15,147.05,14.63876644]
[1745877062567,5.9939,147.17,147.09,14.63876644]
[1745877062863,363.0,147.26,147.15,6.794]
[1745877062864,39.57876644,147.21,147.15,6.794]
[1745877063065,6.7925,147.19,147.11,39.57876644]
[1745877063266,6.7925,147.19,147.15,6.7937]
[1745877066970,6.7925,147.19,147.16,6.7935]
[1745877067369,6.7927,147.18,147.11,39.57876644]
[1745877067868,6.7927,147.18,147.14,6.7942]
[1745877068869,6.7937,147.16,147.13,6.7948]
[1745877069975,6.7937,147.16,147.12,6.7952]
[1745877070569,6.7937,147.16,147.13,6.7948]
[1745877071667,6.7932,147.17,147.13,6.7948]
[1745877072872,6.7932,147.17,147.14,6.7944]
[1745877074673,2.0249,147.18,147.11,24.94]
[1745877075567,8.8178,147.18,147.14,6.7941]
[1745877076371,6.7931,147.17,147.14,6.7941]
[1745877076774,2.0249,147.18,147.14,6.7941]
[1745877076973,8.8178,147.18,147.15,6.794]
[1745877078073,6.7932,147.17,147.14,6.7943]
[1745877079273,6.7936,147.16,147.14,6.7943]
[1745877079473,2.0249,147.18,147.11,24.94]
[1745877079976,2.0249,147.18,147.11,39.57876644]
[1745877080774,6.7932,147.17,147.14,6.7942]
[1745877087874,6.7932,147.17,147.11,39.57876644]
[1745877088079,6.7932,147.17,147.15,6.794]
[1745877090082,6.7932,147.17,147.14,6.7943]
[1745877092384,6.7936,147.16,147.13,6.7948]
[1745877092583,2.0249,147.18,147.11,24.94]
[1745877093282,6.7933,147.17,147.14,6.7945]
[1745877093682,2.0249,147.18,147.11,24.94]
[1745877093885,6.7938,147.16,147.13,6.7947]
[1745877094383,6.7938,147.16,147.14,6.7945]
[1745877095081,6.7938,147.16,147.13,6.7948]
[1745877095584,14.63876644,147.15,147.04,40.17876644]
[1745877095784,14.63876644,147.13,147.04,40.17876644]
[1745877095977,2.0235,147.12,147.04,40.17876644]
[1745877096181,6.7972,147.09,147.05,6.7984]
[1745877096382,6.7972,147.09,147.04,40.17876644]
[1745877096584,6.7964,147.1,147.04,40.17876644]
[1745877096982,27.5635,147.12,147.07,6.7977]
[1745877097279,6.7962,147.11,147.07,6.7977]
[1745877097785,6.7962,147.11,147.08,6.7972]
[1745877098883,6.7965,147.1,147.07,6.7976]
[1745877110187,6.7973,147.08,147.04,25.54]
[1745877110487,27.5635,147.12,147.04,25.54]
[1745877110788,6.797,147.09,147.06,6.798]
[1745877111487,6.7965,147.1,147.07,6.7977]
[1745877112288,25.54,147.12,147.04,40.17876644]
[1745877112483,4.1103,147.17,147.08,14.63876644]
[1745877112686,4.1103,147.17,147.09,25.54]
[1745877112881,6.7938,147.16,147.13,6.7947]
[1745877113086,2.0687,147.17,147.1,14.63876644]
[1745877113387,8.862,147.17,147.1,14.63876644]
[1745877113888,8.862,147.17,147.13,6.7947]
[1745877114888,6.7937,147.16,147.13,6.7947]
[1745877117884,8.862,147.17,147.14,6.7942]
[1745877118089,25.54,147.18,147.1,14.63876644]
[1745877118286,25.54,147.18,147.1,18.68696644]
[1745877118787,2.0986,147.2,147.1,4.0482]
[1745877118985,1.9315,147.23,147.11,1.21062551]
[1745877119189,1.9315,147.23,147.16,14.63876644]
[1745877119387,41.13876644,147.28,147.18,14.63876644]
[1745877119584,26.5,147.28,147.2,14.63876644]
[1745877119989,33.2882,147.28,147.24,6.7895]
[1745877120289,26.5,147.28,147.18,41.13876644]
[1745877120590,6.7897,147.25,147.18,41.13876644]
[1745877121190,6.7897,147.25,147.21,6.7909]
[1745877121383,5.9596,147.3,147.18,26.5]
[1745877121587,3.8561,147.3,147.22,14.63876644]
[1745877121788,10.6433,147.3,147.25,6.7891]
[1745877122187,3.8561,147.3,147.22,41.13876644]
[1745877122390,1.9315,147.3,147.26,6.7885]
[1745877122987,33.2867,147.31,147.26,6.7885]
[1745877123191,33.2867,147.31,147.27,6.7884]
[1745877123487,21.42526644,147.32,147.23,2.085]
[1745877123691,43.23816644,147.34,147.29,6.7875]
[1745877124094,6.7858,147.33,147.29,6.7875]
[1745877124295,14.63876644,147.35,147.26,41.13876644]
[1745877124896,14.63876644,147.35,147.3,6.7868]
[1745877125095,26.5,147.36,147.26,41.13876644]
[1745877125594,26.5,147.36,147.28,14.63876644]
[1745877125988,33.2847,147.36,147.31,6.7863]
[1745877126292,26.5,147.36,147.3,26.5]
[1745877126493,6.7842,147.37,147.32,6.7858]
[1745877127195,26.5,147.39,147.3,41.13876644]
[1745877127394,16.71616644,147.41,147.31,6.1785]
[1745877127792,6.7837,147.38,147.34,6.785]
[1745877129493,6.784,147.37,147.33,6.7856]
[1745877130193,14.63876644,147.37,147.31,2.1203]
[1745877130395,14.63876644,147.37,147.3,26.5]
[1745877130594,41.11876644,147.37,147.3,26.5]
[1745877131490,6.7861,147.33,147.3,26.5]
[1745877134000,26.48,147.37,147.3,33.287]
[1745877134201,28.5574,147.41,147.3,26.5]
[1745877134701,6.7839,147.37,147.33,6.7853]
[1745877135304,6.7839,147.37,147.34,6.7852]
[1745877135507,6.7839,147.37,147.3,28.4757]
[1745877136602,6.7839,147.37,147.33,6.7854]
[1745877137007,28.5574,147.41,147.3,28.4757]
[1745877137207,28.5574,147.41,147.31,27.6]
[1745877137509,28.5574,147.41,147.36,6.7841]
[1745877137706,6.7827,147.4,147.36,6.7841]
[1745877139709,33.2622,147.41,147.37,6.7837]
[1745877140008,26.48,147.41,147.31,29.5722]
[1745877141309,6.7831,147.39,147.35,6.7847]
[1745877141611,6.7831,147.39,147.31,29.5722]
[1745877141806,6.7831,147.39,147.32,1.9928]
[1745877142010,6.7831,147.39,147.35,6.7844]
[1745877142911,6.7831,147.39,147.36,6.7843]
[1745877143611,6.7827,147.4,147.36,6.7843]
[1745877144607,33.2622,147.41,147.38,6.7832]
[1745877144912,27.58,147.44,147.35,27.58]
[1745877145809,6.7817,147.42,147.35,27.58]
[1745877146313,6.7817,147.42,147.38,6.7832]
[1745877146813,6.7817,147.42,147.39,6.783]
[1745877147313,4.108,147.48,147.43,6.781]
[1745877147714,4.108,147.48,147.39,29.34]
[1745877147907,1.9422,147.49,147.4,1.9794]
[1745877148108,4.1255,147.52,147.4,1.9794]
[1745877148307,0.27969,147.47,147.41,23.38241641]
[1745877148613,0.27969,147.47,147.46,6.7798]
[1745877149113,0.27969,147.47,147.44,6.7803]
[1745877150611,0.27969,147.47,147.43,36.101]
[1745877150912,0.27969,147.47,147.43,29.32]
[1745877151313,0.27969,147.47,147.44,6.7804]
[1745877152418,0.27969,147.47,147.43,29.32]
[1745877153013,0.27969,147.47,147.44,6.7803]
[1745877153913,0.27969,147.47,147.45,6.78]
[1745877157716,0.27969,147.47,147.43,29.32]
[1745877157717,0.27969,147.47,147.46,6.7798]
[1745877159013,8.7186,147.54,147.46,14.58529758]
[1745877159214,4.2571,147.58,147.49,14.58529758]
[1745877159413,6.2645,147.58,147.47,32.18]
[1745877159722,6.2645,147.58,147.5,14.58529758]
[1745877160211,32.18,147.6,147.53,6.7765]
[1745877160418,14.58529758,147.59,147.53,6.7765]
[1745877160807,14.58529758,147.59,147.52,6.7769]
[1745877161208,6.7748,147.57,147.49,14.58529758]
[1745877161512,6.7748,147.57,147.52,6.7767]
[1745877161817,6.7748,147.57,147.48,2.0965]
[1745877162421,6.7748,147.57,147.52,6.7767]
[1745877163713,6.7748,147.57,147.53,6.7765]
[1745877164119,6.7752,147.56,147.48,2.0965]
[1745877164515,6.7752,147.56,147.52,6.7767]
[1745877166821,6.7752,147.56,147.53,6.7765]
[1745877167524,6.7749,147.57,147.53,6.7765]
[1745877169621,6.7749,147.57,147.48,2.0965]
[1745877170224,6.7749,147.57,147.53,6.7763]
[1745877171120,6.7749,147.57,147.53,6.7763]
[1745877172919,6.7752,147.56,147.53,6.7763]
[1745877173626,6.7749,147.57,147.53,6.7763]
[1745877173927,6.7749,147.57,147.5,32.18]
[1745877173928,6.7749,147.57,147.54,6.7761]
[1745877174526,55.49445913,147.6,147.53,6.7763]
[1745877174527,6.7752,147.56,147.53,6.7763]
[1745877177530,6.7749,147.57,147.53,6.7763]
[1745877178430,6.7752,147.56,147.53,6.7763]
[1745877181534,6.7752,147.56,147.5,32.18]
[1745877182430,6.7749,147.57,147.53,6.7762]
[1745877182630,14.5715804,147.58,147.53,6.7762]
[1745877182931,46.7515804,147.6,147.5,32.18]
[1745877183128,6.7745,147.58,147.5,32.18]
[1745877183833,6.7747,147.57,147.54,6.7758]
[1745877187135,6.7752,147.56,147.53,6.7763]
[1745877188238,6.7749,147.57,147.54,6.7759]
[1745877192339,46.7515804,147.6,147.5,32.18]
[1745877192542,14.5715804,147.57,147.5,32.18]
[1745877192738,6.7768,147.53,147.48,2.0965]
[1745877192941,6.7768,147.53,147.5,6.7777]
[1745877193136,20.5609804,147.56,147.44,361.9995]
[1745877193137,14.5715804,147.54,147.44,361.9995]
[1745877193339,14.5715804,147.48,147.43,6.781]
[1745877194037,6.7798,147.46,147.43,6.781]
[1745877194442,14.5715804,147.48,147.43,6.781]
[1745877194842,6.7793,147.47,147.43,6.781]
[1745877195142,6.7793,147.47,147.44,6.7806]
[1745877196138,21.3505804,147.48,147.45,6.7802]
[1745877197141,6.779,147.48,147.45,6.7802]
[1745877201550,31.0,147.5,147.41,14.5715804]
[1745877201851,31.02,147.53,147.45,14.5715804]
[1745877202350,37.7967,147.53,147.49,6.778]
[1745877203648,31.02,147.53,147.45,14.5715804]
[1745877203846,31.02,147.53,147.47,14.5715804]
[1745877204047,5.9894,147.56,147.49,14.5715804]
[1745877204246,5.9894,147.56,147.55,6.7756]
[1745877204553,29.84,147.57,147.55,6.7756]
[1745877205250,29.84,147.57,147.54,6.7759]
[1745877205443,2.1246,147.56,147.49,14.5715804]
[1745877205648,6.7741,147.59,147.56,6.7751]
[1745877207751,51.1848804,147.6,147.57,6.7746]
[1745877208246,6.7738,147.59,147.51,14.5715804]
[1745877208649,20.7045804,147.62,147.53,14.5715804]
[1745877208952,6.133,147.62,147.55,14.5715804]
[1745877209251,6.133,147.62,147.56,29.84]
[1745877209454,6.133,147.62,147.59,6.7735]
[1745877209650,2.1246,147.62,147.59,6.7735]
[1745877210350,2.1246,147.62,147.57,14.5715804]
[1745877210553,14.5715804,147.66,147.57,14.5715804]
[1745877210744,2.0445,147.68,147.59,14.5715804]
[1745877211054,8.8145,147.68,147.6,29.84]
[1745877211656,2.0445,147.68,147.63,6.7717]
[1745877212251,8.8145,147.68,147.63,6.7717]
[1745877212855,6.7702,147.67,147.63,6.7717]
[1745877213356,2.0445,147.68,147.62,23.27825425]
[1745877213752,6.7693,147.69,147.62,23.27825425]
[1745877213955,3.9637,147.7,147.65,6.7707]
[1745877214461,10.7328,147.7,147.65,6.7707]
[1745877215758,3.9637,147.7,147.68,6.7696]
[1745877216061,1.9441,147.72,147.64,29.82]
[1745877216263,6.7686,147.71,147.66,6.7704]
[1745877217666,23.27825425,147.72,147.62,29.82]
[1745877218262,6.7705,147.67,147.62,36.5923]
[1745877218561,1.9925,147.71,147.62,29.82]
[1745877218869,6.7689,147.7,147.65,6.7707]
[1745877219567,6.7689,147.7,147.66,6.7705]
[1745877220168,6.7684,147.71,147.66,6.7705]
[1745877221858,6.7689,147.7,147.66,6.7705]
[1745877225473,6.7685,147.71,147.67,6.7701]
[1745877226972,6.7688,147.7,147.67,6.7701]
[1745877235179,6.7688,147.7,147.66,6.7704]
[1745877235577,6.7692,147.69,147.66,6.7704]
[1745877235779,44.38269629,147.73,147.64,14.54269629]
[1745877235979,44.38269629,147.73,147.65,6.771]
[1745877236278,6.7701,147.67,147.65,6.771]
[1745877238482,6.7706,147.66,147.62,44.36269629]
[1745877238677,14.54269629,147.71,147.62,44.36269629]
[1745877238981,14.54269629,147.72,147.63,6.7717]
[1745877239482,6.7707,147.66,147.63,6.7717]
[1745877240878,6.7707,147.66,147.64,6.7715]
[1745877241279,6.7703,147.67,147.64,6.7715]
[1745877241582,14.54269629,147.72,147.64,6.7715]
[1745877241878,6.7707,147.66,147.63,6.7718]
[1745877252087,6.7712,147.65,147.63,6.7718]
[1745877253487,6.7707,147.66,147.63,6.7718]
[1745877255484,6.771,147.65,147.63,6.7718]
[1745877257589,6.7707,147.66,147.63,6.7718]
[1745877258992,6.7707,147.66,147.64,5.9796]
[1745877259492,6.771,147.65,147.64,5.9796]
[1745877259793,28.66,147.69,147.64,5.9796]
[1745877259989,6.771,147.66,147.64,5.9796]
[1745877260792,6.771,147.65,147.64,5.9796]
[1745877263895,6.7707,147.66,147.64,5.9796]
[1745877277200,6.771,147.65,147.64,5.9796]
[1745877297311,6.771,147.65,147.64,4.0271]
[1745877297512,6.771,147.65,147.62,6.7723]
[1745877300013,6.7717,147.64,147.62,6.7723]
[1745877300714,6.7711,147.65,147.62,6.7723]
[1745877300911,398.81102422,147.64,147.48,94.76793881]
[1745877301215,6.7748,147.57,147.53,9.31102422]
[1745877301616,35.81102422,147.59,147.53,9.31102422]
[1745877301817,35.81102422,147.59,147.48,96.75863881]
[1745877301818,9.31102422,147.55,147.48,94.76793881]
[1745877302008,9.31102422,147.53,147.48,94.76793881]
[1745877302213,6.7776,147.51,147.48,94.76793881]
[1745877303315,9.31102422,147.53,147.48,94.76793881]
[1745877304012,9.31102422,147.53,147.49,39.96570849]
[1745877304218,9.31102422,147.53,147.48,6.7788]
[1745877305416,9.31102422,147.53,147.49,6.7783]
[1745877305616,33.2763,147.54,147.49,6.7783]
[1745877305818,33.2763,147.54,147.46,14.57753352]
[1745877306817,33.2763,147.54,147.51,6.7774]
[1745877307822,26.5,147.54,147.51,6.7774]
[1745877309025,26.5,147.54,147.5,6.7778]
[1745877309422,33.2763,147.54,147.5,6.7778]
[1745877313129,26.5,147.54,147.48,14.57753352]
[1745877313325,20.77743352,147.58,147.48,14.57753352]
[1745877313529,20.77743352,147.58,147.48,41.09753352]
[1745877313530,26.52,147.57,147.48,41.09753352]
[1745877313735,26.52,147.57,147.55,6.7755]
[1745877316234,26.52,147.57,147.56,6.7752]
[1745877316430,6.7739,147.59,147.5,16.64393352]
[1745877316734,26.52,147.6,147.57,6.7746]
[1745877317131,6.7732,147.61,147.57,6.7746]
[1745877318637,6.7732,147.61,147.58,6.7742]
[1745877319037,6.7732,147.61,147.53,26.52]
[1745877319939,6.7736,147.6,147.56,6.7749]
[1745877322236,6.7739,147.59,147.56,6.7749]
[1745877326537,16.09462025,147.6,147.57,6.7745]
[1745877328041,6.7738,147.59,147.56,6.775]
[1745877329636,9.32112025,147.6,147.53,26.52]
[1745877329837,9.32112025,147.64,147.58,9.32112025]
[1745877330236,16.09282025,147.64,147.61,6.7726]
[1745877330437,9.32112025,147.64,147.58,9.32112025]
[1745877330936,6.7725,147.62,147.59,6.7734]
[1745877331141,16.09362025,147.62,147.59,6.7734]
[1745877332043,9.32112025,147.62,147.57,25.84]
[1745877332240,9.32112025,147.6,147.55,9.32112025]
[1745877332638,9.32112025,147.6,147.57,6.7743]
[1745877333343,16.09482025,147.6,147.57,6.7743]
[1745877336543,16.09482025,147.6,147.56,6.775]
[1745877343350,16.09482025,147.6,147.57,6.7747]
[1745877345051,16.09482025,147.6,147.55,9.32112025]
[1745877345052,16.09482025,147.6,147.56,6.7749]
[1745877346051,6.7738,147.59,147.56,6.7749]
[1745877350351,9.32112025,147.6,147.55,9.32112025]
[1745877350754,6.7739,147.59,147.56,6.7749]
[1745877353754,6.7739,147.59,147.57,6.7746]
[1745877354955,16.09472025,147.6,147.57,6.7746]
[1745877359957,6.7738,147.59,147.56,6.775]
[1745877360255,9.32112025,147.6,147.56,6.775]
[1745877361260,16.09472025,147.6,147.56,6.775]
[1745877362460,6.7738,147.59,147.56,6.775]
[1745877364956,6.7738,147.59,147.55,9.32112025]
[1745877364957,9.32112025,147.58,147.52,9.32112025]
[1745877365163,9.32112025,147.58,147.51,34.56112025]
[1745877365561,6.7756,147.56,147.51,34.56112025]
[1745877365961,16.09672025,147.56,147.51,34.56112025]
[1745877367262,6.7756,147.55,147.52,6.7767]
[1745877372168,16.09652025,147.56,147.53,6.7764]
[1745877373366,6.7758,147.55,147.53,6.7764]
[1745877380675,6.7754,147.56,147.53,16.09732025]
[1745877380974,6.7754,147.56,147.53,9.32112025]
[1745877381672,6.7754,147.56,147.53,16.09742025]
[1745877387685,6.7754,147.56,147.53,6.7763]
[1745877399486,34.56112025,147.58,147.53,6.7763]
[1745877399690,6.7756,147.55,147.53,6.7763]
[1745877400188,6.7755,147.56,147.53,6.7763]
[1745877402591,6.7755,147.56,147.54,6.7761]
[1745877405490,6.7755,147.56,147.52,9.32112025]
[1745877405790,6.7755,147.56,147.53,6.7763]
[1745877407494,6.7747,147.57,147.54,6.776]
[1745877410800,6.7753,147.56,147.54,6.776]
[1745877411597,6.7749,147.57,147.55,6.7756]
[1745877411902,2.038,147.59,147.54,9.32112025]
[1745877412402,8.812,147.59,147.54,9.32112025]
[1745877412698,2.038,147.59,147.57,6.7743]
[1745877416097,9.32112025,147.6,147.55,9.32112025]
[1745877417903,9.32112025,147.6,147.57,6.7743]
[1745877418102,16.09452025,147.6,147.57,6.7743]
[1745877418302,16.09452025,147.6,147.55,9.32112025]
[1745877419106,16.09452025,147.6,147.58,6.7742]
[1745877419303,9.32112025,147.6,147.58,6.7742]
[1745877419904,16.09462025,147.6,147.57,6.7745]
[1745877434610,16.09462025,147.6,147.56,6.7748]
[1745877435209,16.09462025,147.6,147.57,6.7746]
[1745877445116,9.32112025,147.58,147.53,9.32112025]
[1745877445505,6.7751,147.57,147.54,6.7758]
[1745877450919,16.09562025,147.58,147.54,6.7758]
[1745877451121,16.09562025,147.58,147.55,6.7755]
[1745877451721,16.09562025,147.58,147.54,6.7759]
[1745877451922,16.09562025,147.58,147.53,9.32112025]
[1745877452422,16.09562025,147.58,147.55,6.7755]
[1745877457024,6.7747,147.57,147.54,6.7759]
[1745877457526,6.7747,147.57,147.53,9.32112025]
[1745877457827,6.7747,147.57,147.54,6.776]
[1745877461829,6.7752,147.56,147.53,16.09742025]
[1745877462027,6.7752,147.56,147.53,9.32112025]
[1745877462226,6.7752,147.56,147.51,25.24]
[1745877462227,6.7752,147.56,147.51,34.56112025]
[1745877462729,6.7752,147.56,147.53,6.7762]
[1745877466629,6.7757,147.55,147.53,6.7762]
[1745877467731,16.09652025,147.56,147.53,6.7762]
[1745877481248,6.7757,147.55,147.52,6.7768]
[1745877482746,6.7757,147.55,147.53,6.7765]
[1745877483052,9.32112025,147.56,147.53,6.7765]
[1745877484250,6.7757,147.55,147.53,6.7765]
[1745877484552,6.7757,147.55,147.52,6.7768]
[1745877485351,6.7757,147.55,147.53,6.7764]
[1745877485747,16.09652025,147.56,147.53,6.7764]
[1745877485952,9.32112025,147.56,147.53,6.7764]
[1745877487255,6.7757,147.55,147.53,6.7764]
[1745877494749,6.7757,147.55,147.52,6.7768]
[1745877495960,6.7757,147.55,147.53,6.7765]
[1745877496161,6.7757,147.55,147.51,9.32112025]
[1745877496556,6.7757,147.55,147.52,6.7767]
[1745877498160,6.7757,147.55,147.53,6.7765]
[1745877499863,16.09652025,147.56,147.53,6.7765]
[1745877500763,6.7757,147.55,147.53,6.7765]
[1745877511371,6.7761,147.54,147.5,9.32112025]
[1745877511871,9.32112025,147.56,147.5,9.32112025]
[1745877512071,6.7758,147.55,147.52,6.7766]
[1745877512573,6.7758,147.55,147.53,6.7764]
[1745877528486,16.09652025,147.56,147.53,6.7764]
[1745877528683,9.32112025,147.56,147.53,6.7764]
[1745877530389,6.7756,147.55,147.53,6.7764]
[1745877530687,9.32112025,147.56,147.53,6.7764]
[1745877530889,16.09662025,147.56,147.53,6.7764]
[1745877531280,9.32112025,147.56,147.53,6.7764]
[1745877532493,16.09662025,147.56,147.53,6.7764]
[1745877532995,40.47662025,147.56,147.53,6.7764]
[1745877548407,6.7757,147.55,147.53,6.7764]
[1745877549007,40.47642025,147.56,147.53,6.7764]
[1745877551408,24.38,147.56,147.53,6.7764]
[1745877552307,31.1554,147.56,147.53,6.7764]
[1745877553409,24.36,147.59,147.52,9.32112025]
[1745877553603,24.36,147.59,147.54,9.32112025]
[1745877554004,24.36,147.59,147.56,6.7749]
[1745877554205,24.36,147.59,147.54,9.32112025]
[1745877555012,24.36,147.59,147.56,6.7749]
[1745877562115,31.1338,147.59,147.56,6.7749]
[1745877565718,16.09482025,147.6,147.56,6.7749]
[1745877567218,16.09482025,147.6,147.55,6.7754]
[1745877567518,6.7739,147.59,147.55,6.7754]
[1745877570118,16.09462025,147.6,147.55,6.7754]
[1745877570316,9.32112025,147.61,147.56,16.09602025]
[1745877571013,16.09422025,147.61,147.57,6.7747]
[1745877572119,9.32112025,147.62,147.58,9.32112025]
[1745877572308,24.36,147.63,147.6,9.32112025]
[1745877572515,3.9644,147.67,147.62,9.32112025]
[1745877572716,9.32112025,147.68,147.63,9.32112025]
[1745877573111,9.32112025,147.68,147.65,6.7707]
[1745877575623,9.32112025,147.68,147.64,6.7713]
[1745877575923,16.09112025,147.68,147.63,9.32112025]
[1745877576523,16.09112025,147.68,147.63,16.09292025]
[1745877576824,16.09112025,147.68,147.63,9.32112025]
[1745877577326,16.09112025,147.68,147.64,6.7712]
[1745877578830,24.36,147.72,147.65,16.09212025]
[1745877579125,9.32112025,147.68,147.64,9.32112025]
[1745877580229,16.09082025,147.68,147.64,16.09242025]
[1745877581129,16.09082025,147.68,147.64,6.7713]
[1745877581324,6.7694,147.69,147.64,6.7713]
[1745877581532,9.32112025,147.68,147.64,6.7713]
[1745877582829,9.32112025,147.68,147.65,6.771]
[1745877588539,9.32112025,147.68,147.66,6.7704]
[1745877591643,16.09052025,147.69,147.66,6.7704]
[1745877599444,9.32112025,147.68,147.66,6.7704]
[1745877600849,9.32112025,147.68,147.64,9.32112025]
[1745877601349,9.32112025,147.68,147.66,6.7705]
[1745877601539,9.32112025,147.68,147.64,9.32112025]
[1745877601745,9.32112025,147.65,147.6,9.32112025]
[1745877601948,16.09332025,147.63,147.58,9.32112025]
[1745877602148,9.32112025,147.63,147.58,9.32112025]
[1745877602343,9.32112025,147.62,147.56,24.32]
[1745877602543,9.32112025,147.62,147.57,9.32112025]
[1745877602748,9.32112025,147.61,147.57,6.7745]
[1745877602948,9.32112025,147.61,147.56,33.64112025]
[1745877603353,6.7735,147.6,147.57,6.7746]
[1745877604555,9.32112025,147.61,147.57,6.7746]
[1745877606154,9.32112025,147.61,147.58,6.774]
[1745877606650,16.09422025,147.61,147.58,6.774]
[1745877606854,16.09422025,147.61,147.57,6.7745]
[1745877607052,16.09422025,147.61,147.56,9.32112025]
[1745877607754,6.7735,147.6,147.56,9.32112025]
[1745877608156,9.32112025,147.61,147.56,9.32112025]
[1745877608357,16.09422025,147.61,147.57,6.7745]
[1745877609360,16.09422025,147.61,147.58,6.7742]
[1745877609755,16.09422025,147.61,147.56,9.32112025]
[1745877610160,16.09422025,147.61,147.57,6.7743]
[1745877610560,16.09422025,147.61,147.56,9.32112025]
[1745877611865,6.7731,147.61,147.56,9.32112025]
[1745877612361,6.0477,147.67,147.6,9.32112025]
[1745877612559,2.0862,147.67,147.61,24.34]
[1745877612765,24.34,147.7,147.64,9.32112025]
[1745877612964,40.43022025,147.7,147.64,9.32112025]
[1745877613263,33.66112025,147.7,147.64,9.32112025]
[1745877614863,40.42992025,147.7,147.64,9.32112025]
[1745877615169,24.34,147.7,147.64,9.32112025]
[1745877615365,24.34,147.7,147.66,6.7702]
[1745877616369,24.34,147.7,147.62,14.54542075]
[1745877617374,24.34,147.7,147.66,6.7702]
[1745877618168,24.34,147.7,147.64,14.54542075]
[1745877618869,24.34,147.7,147.63,14.54542075]
[1745877619369,24.34,147.7,147.67,6.7698]
[1745877619570,24.34,147.7,147.63,14.54542075]
[1745877619571,24.34,147.7,147.61,38.88542075]
[1745877619965,31.109,147.7,147.65,6.7707]
[1745877620871,31.109,147.7,147.66,6.7705]
[1745877621066,31.109,147.7,147.61,38.88542075]
[1745877621569,6.7692,147.69,147.65,6.7709]
[1745877622768,31.1088,147.7,147.61,38.88542075]
[1745877622968,24.34,147.7,147.61,38.88542075]
[1745877624271,6.7692,147.69,147.65,6.7707]
[1745877625475,31.109,147.7,147.65,6.7707]
[1745877625669,31.109,147.7,147.66,6.7705]
[1745877631675,6.7693,147.69,147.66,6.7705]
[1745877636876,31.1089,147.7,147.66,6.7705]
[1745877637485,40.41705246,147.7,147.66,6.7705]
[1745877637975,33.64815246,147.7,147.65,9.30815246]
[1745877638169,33.64815246,147.7,147.67,6.7701]
[1745877638775,4.1323,147.72,147.66,9.30815246]
[1745877638982,2.0187,147.77,147.67,26.98]
[1745877639173,2.0187,147.77,147.74,9.30815246]
[1745877639375,2.0187,147.77,147.74,16.07495246]
[1745877639682,2.0187,147.77,147.73,9.30815246]
[1745877639981,2.0187,147.77,147.75,6.7661]
[1745877640281,2.0187,147.77,147.73,9.30815246]
[1745877640482,11.32685246,147.77,147.71,26.98]
[1745877640982,11.32685246,147.77,147.74,6.7668]
[1745877641483,2.0187,147.77,147.74,6.7668]
[1745877644387,2.0187,147.77,147.75,6.7664]
[1745877644888,2.0187,147.77,147.71,26.98]
[1745877645089,2.0187,147.77,147.73,6.7669]
[1745877645291,2.0187,147.77,147.71,26.98]
[1745877646688,2.0187,147.77,147.73,6.767]
[1745877646890,2.0187,147.77,147.71,26.98]
[1745877647188,2.0187,147.77,147.73,6.7671]